[Event "FIDE WYCC Top Boards Girls 2023"]
[Site "Montesilvano"]
[Date "2023.11.21"]
[Round "8.7"]
[White "Wu, Rochelle"]
[Black "Wikar, Martyna"]
[Result "1-0"]
[ECO "E43"]
[WhiteElo "2228"]
[BlackElo "2228"]
[Annotator "RC"]
[PlyCount "115"]
[EventDate "2023.11.13"]
[EventType "swiss"]
[EventCountry "ITA"]
[SourceTitle "playchess.com"]
[Source "ChessBase"]
[SourceQuality "1"]
[TimeControl "40/5400+30:1800+30"]

1. d4 {[%emt 0:00:05]} Nf6 {[%emt 0:00:07]} 2. c4 {[%emt 0:00:06]} e6 {[%emt 0:00:04]} 3. Nc3 {[%emt 0:00:06]} Bb4 {[%emt 0:00:06]} 4. e3 {[%emt 0:00:05]} b6 {[%emt 0:01:36]} 5. Bd2 {[%emt 0:00:58]} Bb7 {[%emt 0:01:09]} 6. Nge2 {[%emt 0:08:52]} O-O {[%emt 0:01:22]} 7. f3 {[%emt 0:09:03]} Re8 {[%emt 0:16:49]} 8. e4 {[%emt 0:08:32]} d5 {[%emt 0:03:36]} 9. e5 {[%emt 0:04:01]} Nfd7 {[%emt 0:02:48]} 10. cxd5 {[%emt 0:02:34]} exd5 {[%emt 0:01:57]} 11. f4 {[%emt 0:00:12]} Nf8 {[%emt 0:06:50]} 12. g3 {[%emt 0:02:03]} f5 {[%emt 0:08:18]} 13. Bg2 {[%emt 0:04:24]} Qd7 {[%emt 0:01:08]} 14. Qb3 {[%emt 0:04:28]} Bxc3 {[%emt 0:01:17]} 15. Nxc3 {[%emt 0:00:05]} Rd8 {[%emt 0:02:07]} 16. Be3 {[%emt 0:01:23]} Na6 {[%emt 0:09:27]} 17. O-O {[%emt 0:05:12]} g6 {[%emt 0:03:21]} 18. g4 {[%emt 0:08:57]} Ne6 {[%emt 0:15:31]} 19. gxf5 {[%emt 0:05:25]} gxf5 {[%emt 0:00:02]} 20. Rad1 {[%emt 0:05:21]} Kh8 {[%emt 0:02:58]} 21. Ne2 {[%emt 0:00:10]} c5 {[%emt 0:05:43]} 22. Bf2 {[%emt 0:03:43]} Rf8 {[%emt 0:04:35]} 23. Bh4 {[%emt 0:04:20]} Nac7 {[%emt 0:02:00]} 24. dxc5 {[%emt 0:10:43]} bxc5 {[%emt 0:03:18]} 25. Rf2 {[%emt 0:02:25]} Bc6 {[%emt 0:00:38]} 26. Qc2 {[%emt 0:01:53]} Ne8 {[%emt 0:01:14]} 27. Ng3 {[%emt 0:00:47]} Qf7 {[%emt 0:01:34]} 28. Bh3 {[%emt 0:00:13]} Qg7 {[%emt 0:01:48]} 29. Bxf5 {[%emt 0:03:19]} Qh6 {[%emt 0:02:22]} 30. Bxe6 {[%emt 0:01:33]} Qxe6 {[%emt 0:00:49]} 31. Qxc5 {[%emt 0:00:36]} Ng7 {[%emt 0:00:17]} 32. Bf6 {[%emt 0:00:34]} Rxf6 {[%emt 0:00:24]} 33. exf6 {[%emt 0:00:06]} Qxf6 {[%emt 0:00:05]} 34. Qd4 {[%emt 0:01:16]} Qxd4 {[%emt 0:01:01]} 35. Rxd4 {[%emt 0:00:02]} Ne6 {[%emt 0:00:06]} 36. Rd1 {[%emt 0:00:39]} d4 {[%emt 0:00:09]} 37. Re1 {[%emt 0:00:08]} Bd5 {[%emt 0:00:42]} 38. b3 {[%emt 0:00:37]} Rd8 {[%emt 0:01:35]} 39. Kf1 {[%emt 0:02:00]} d3 {[%emt 0:00:25]} 40. Rd1 {[%emt 0:00:00]} Bb7 {[%emt 0:00:00]} 41. f5 {[%emt 0:02:48]} Ng5 {[%emt 0:01:38]} 42. f6 {[%emt 0:07:26]} Nf3 {[%emt 0:08:44]} 43. f7 {[%emt 0:07:11]} Kg7 {[%emt 0:02:23]} 44. Nf5+ {[%emt 0:03:41]} Kf8 {[%emt 0:00:05]} 45. Rg2 {[%emt 0:02:04]} Kxf7 {[%emt 0:03:43]} 46. Rg7+ {[%emt 0:00:05]} Kf6 {[%emt 0:00:05]} 47. Rxb7 {[%emt 0:00:04]} Kxf5 {[%emt 0:00:05]} 48. Rxh7 {[%emt 0:01:50]} a6 {[%emt 0:04:10]} 49. Kf2 {[%emt 0:01:24]} Ne5 {[%emt 0:00:39]} 50. Ke3 {[%emt 0:01:51]} Ng4+ {[%emt 0:05:05]} 51. Kd2 {[%emt 0:00:13]} Rd6 {[%emt 0:01:14]} 52. Rf1+ {[%emt 0:01:11]} Kg6 {[%emt 0:00:54]} 53. Rh3 {[%emt 0:00:06]} Ne5 {[%emt 0:04:58]} 54. Rg3+ {[%emt 0:00:06]} Kh6 {[%emt 0:00:29]} 55. Rf5 {[%emt 0:00:19]} Rd5 {[%emt 0:00:26]} 56. Rf8 {[%emt 0:00:41]} Kh7 {[%emt 0:00:32]} 57. Rf4 {[%emt 0:00:06]} Ng6 {[%emt 0:00:29]} 58. Rf7+ {[%emt 0:00:07]} 1-0

[Event "FIDE WYCC Top Boards Girls 2023"]
[Site "Montesilvano"]
[Date "2023.11.21"]
[Round "8.8"]
[White "Balabayeva, Xeniya"]
[Black "Allahverdiyeva, Ayan"]
[Result "1/2-1/2"]
[ECO "B52"]
[WhiteElo "2192"]
[BlackElo "2152"]
[Annotator "RC"]
[PlyCount "74"]
[EventDate "2023.11.13"]
[EventType "swiss"]
[EventCountry "ITA"]
[SourceTitle "playchess.com"]
[Source "ChessBase"]
[SourceQuality "1"]
[TimeControl "40/5400+30:1800+30"]

1. e4 {[%emt 0:00:03]} c5 {[%emt 0:00:54]} 2. Nf3 {[%emt 0:00:14]} d6 {[%emt 0:00:05]} 3. Bb5+ {[%emt 0:00:21]} Bd7 {[%emt 0:00:06]} 4. Bxd7+ {[%emt 0:00:12]} Qxd7 {[%emt 0:00:05]} 5. O-O {[%emt 0:00:11]} Nf6 {[%emt 0:00:05]} 6. Re1 {[%emt 0:00:15]} Nc6 {[%emt 0:00:33]} 7. c3 {[%emt 0:00:19]} e6 {[%emt 0:00:04]} 8. d4 {[%emt 0:00:10]} cxd4 {[%emt 0:00:04]} 9. cxd4 {[%emt 0:00:10]} d5 {[%emt 0:00:04]} 10. e5 {[%emt 0:00:07]} Ne4 {[%emt 0:00:09]} 11. a3 {[%emt 0:00:44]} Be7 {[%emt 0:00:04]} 12. Nbd2 {[%emt 0:00:12]} Nxd2 {[%emt 0:00:05]} 13. Bxd2 {[%emt 0:00:07]} O-O {[%emt 0:00:29]} 14. Rc1 {[%emt 0:00:13]} h6 {[%emt 0:00:37]} 15. Rc3 {[%emt 0:05:45]} f5 {[%emt 0:01:20]} 16. exf6 {[%emt 0:09:59]} Rxf6 {[%emt 0:00:04]} 17. Ne5 {[%emt 0:12:55]} Nxe5 {[%emt 0:00:05]} 18. dxe5 {[%emt 0:01:29]} Rf7 {[%emt 0:05:26]} 19. Qg4 {[%emt 0:03:52]} Kh7 {[%emt 0:10:32]} 20. Rec1 {[%emt 0:08:17]} Bd8 {[%emt 0:02:13]} 21. Be3 {[%emt 0:04:20]} Rf5 {[%emt 0:03:54]} 22. Bd4 {[%emt 0:07:48]} a5 {[%emt 0:11:32]} 23. b3 {[%emt 0:09:47]} Qe7 {[%emt 0:04:15]} 24. a4 {[%emt 0:05:54]} Qb4 {[%emt 0:01:03]} 25. Qd1 {[%emt 0:20:23]} Bb6 {[%emt 0:03:06]} 26. Bxb6 {[%emt 0:00:56]} Qxb6 {[%emt 0:00:04]} 27. Qc2 {[%emt 0:00:06]} Kg8 {[%emt 0:06:32]} 28. Re3 {[%emt 0:01:53]} d4 {[%emt 0:06:16]} 29. Re2 {[%emt 0:01:10]} Rd8 {[%emt 0:01:05]} 30. Qd3 {[%emt 0:00:26]} Rd5 {[%emt 0:05:10]} 31. Rc8+ {[%emt 0:01:03]} Rf8 {[%emt 0:02:04]} 32. Rc4 {[%emt 0:00:39]} Rc5 {[%emt 0:08:38]} 33. h3 {[%emt 0:03:59]} Rxc4 {[%emt 0:02:27]} 34. Qxc4 {[%emt 0:00:03]} Rd8 {[%emt 0:00:46]} 35. Rd2 {[%emt 0:00:21]} Rd5 {[%emt 0:05:17]} 36. Qc8+ {[%emt 0:01:27]} Kh7 {[%emt 0:04:59]} 37. Qc2+ {[%emt 0:00:12]} Kg8 {[%emt 0:00:44]} 1/2-1/2

[Event "FIDE WYCC Top Boards Girls 2023"]
[Site "Montesilvano"]
[Date "2023.11.21"]
[Round "8.9"]
[White "Wang, Chuqiao"]
[Black "Tokarz, Izabela"]
[Result "1-0"]
[ECO "D91"]
[WhiteElo "2215"]
[BlackElo "1931"]
[Annotator "RC"]
[PlyCount "99"]
[EventDate "2023.11.13"]
[EventType "swiss"]
[EventCountry "ITA"]
[SourceTitle "playchess.com"]
[Source "ChessBase"]
[SourceQuality "1"]
[TimeControl "40/5400+30:1800+30"]

1. d4 {[%emt 0:00:07]} Nf6 {[%emt 0:00:04]} 2. c4 {[%emt 0:00:10]} g6 {[%emt 0:00:05]} 3. Nc3 {[%emt 0:00:21]} d5 {[%emt 0:00:05]} 4. Nf3 {[%emt 0:02:12]} Bg7 {[%emt 0:00:12]} 5. Bg5 {[%emt 0:00:29]} Ne4 {[%emt 0:00:17]} 6. Bf4 {[%emt 0:01:17]} Nxc3 {[%emt 0:03:30]} 7. bxc3 {[%emt 0:00:04]} dxc4 {[%emt 0:00:06]} 8. Qa4+ {[%emt 0:02:17]} c6 {[%emt 0:00:07]} 9. Qxc4 {[%emt 0:00:20]} Qa5 {[%emt 0:01:33]} 10. e3 {[%emt 0:04:04]} Be6 {[%emt 0:00:14]} 11. Qd3 {[%emt 0:01:35]} O-O {[%emt 0:02:56]} 12. Be2 {[%emt 0:00:48]} b5 {[%emt 0:11:35]} 13. Nd2 {[%emt 0:04:30]} Nd7 {[%emt 0:03:17]} 14. O-O {[%emt 0:01:06]} Rfd8 {[%emt 0:02:19]} 15. Qc2 {[%emt 0:02:22]} Rac8 {[%emt 0:04:32]} 16. a4 {[%emt 0:02:22]} Qb6 {[%emt 0:05:24]} 17. a5 {[%emt 0:01:33]} Qa6 {[%emt 0:18:01]} 18. Qb2 {[%emt 0:07:24]} Nb8 {[%emt 0:02:45]} 19. Ne4 {[%emt 0:09:48]} Nd7 {[%emt 0:00:59]} 20. Rfc1 {[%emt 0:02:02]} Bc4 {[%emt 0:04:58]} 21. Rd1 {[%emt 0:05:39]} h6 {[%emt 0:11:59]} 22. h4 {[%emt 0:08:50]} f5 {[%emt 0:02:19]} 23. Bxc4+ {[%emt 0:04:01]} bxc4 {[%emt 0:00:01]} 24. Nd2 {[%emt 0:00:22]} c5 {[%emt 0:02:11]} 25. Nf3 {[%emt 0:00:42]} cxd4 {[%emt 0:01:19]} 26. exd4 {[%emt 0:00:54]} Nf6 {[%emt 0:08:43]} 27. Rdb1 {[%emt 0:02:06]} Nd5 {[%emt 0:01:38]} 28. Bd2 {[%emt 0:00:21]} Qd6 {[%emt 0:00:44]} 29. Qc2 {[%emt 0:02:12]} Rc7 {[%emt 0:03:06]} 30. h5 {[%emt 0:00:33]} Rf8 {[%emt 0:02:02]} 31. hxg6 {[%emt 0:04:26]} Qxg6 {[%emt 0:00:02]} 32. a6 {[%emt 0:02:24]} Rc6 {[%emt 0:03:22]} 33. Rb5 {[%emt 0:00:37]} Qd6 {[%emt 0:00:36]} 34. Raa5 {[%emt 0:01:35]} e6 {[%emt 0:00:20]} 35. Qc1 {[%emt 0:00:30]} Kh7 {[%emt 0:02:46]} 36. Rb7 {[%emt 0:00:47]} f4 {[%emt 0:03:08]} 37. Rxa7 {[%emt 0:01:49]} Qd8 {[%emt 0:00:25]} 38. Rb5 {[%emt 0:01:05]} Qd6 {[%emt 0:00:56]} 39. Rbb7 {[%emt 0:05:42]} Rc7 {[%emt 0:00:04]} 40. Qb1+ {[%emt 0:00:00]} Kg8 {[%emt 0:00:00]} 41. Qb5 {[%emt 0:04:47]} Bf6 {[%emt 0:11:19]} 42. Rxc7 {[%emt 0:00:38]} Nxc7 {[%emt 0:00:02]} 43. Qxc4 {[%emt 0:00:10]} Rf7 {[%emt 0:00:22]} 44. Qb4 {[%emt 0:02:29]} Qc6 {[%emt 0:01:17]} 45. Qb8+ {[%emt 0:01:01]} Kg7 {[%emt 0:00:01]} 46. Bxf4 {[%emt 0:00:23]} Nxa6 {[%emt 0:00:14]} 47. Rxf7+ {[%emt 0:00:10]} Kxf7 {[%emt 0:00:02]} 48. Qb1 {[%emt 0:00:42]} Kg7 {[%emt 0:00:58]} 49. Ne5 {[%emt 0:00:08]} Bxe5 {[%emt 0:00:24]} 50. Bxe5+ {[%emt 0:00:03]} 1-0

[Event "FIDE WYCC Top Boards Girls 2023"]
[Site "Montesilvano"]
[Date "2023.11.21"]
[Round "8.10"]
[White "Siekanska, Maria"]
[Black "Shvedova, Alexandra"]
[Result "0-1"]
[ECO "D45"]
[WhiteElo "2180"]
[BlackElo "2170"]
[Annotator "RC"]
[PlyCount "80"]
[EventDate "2023.11.13"]
[EventType "swiss"]
[EventCountry "ITA"]
[SourceTitle "playchess.com"]
[Source "ChessBase"]
[SourceQuality "1"]
[TimeControl "40/5400+30:1800+30"]

1. d4 {[%emt 0:00:02]} d5 {[%emt 0:00:06]} 2. c4 {[%emt 0:00:12]} e6 {[%emt 0:00:07]} 3. Nc3 {[%emt 0:00:11]} c6 {[%emt 0:00:16]} 4. e3 {[%emt 0:01:53]} Nf6 {[%emt 0:00:35]} 5. Nf3 {[%emt 0:00:50]} Nbd7 {[%emt 0:00:21]} 6. a4 {[%emt 0:02:37]} Bb4 {[%emt 0:12:42]} 7. Bd3 {[%emt 0:03:49]} O-O {[%emt 0:06:03]} 8. O-O {[%emt 0:00:36]} Qe7 {[%emt 0:03:08]} 9. Qc2 {[%emt 0:12:00]} e5 {[%emt 0:09:44]} 10. dxe5 {[%emt 0:01:29]} Nxe5 {[%emt 0:04:09]} 11. Nxe5 {[%emt 0:00:19]} Qxe5 {[%emt 0:00:05]} 12. cxd5 {[%emt 0:00:42]} cxd5 {[%emt 0:00:30]} 13. Bd2 {[%emt 0:10:33]} Bd7 {[%emt 0:04:27]} 14. f4 {[%emt 0:20:46]} Qe8 {[%emt 0:20:37]} 15. Rae1 {[%emt 0:05:22]} Rc8 {[%emt 0:02:36]} 16. Qb3 {[%emt 0:02:21]} a5 {[%emt 0:04:01]} 17. e4 {[%emt 0:09:25]} Bxa4 {[%emt 0:07:43]} 18. Qa2 {[%emt 0:05:17]} dxe4 {[%emt 0:04:41]} 19. Nxe4 {[%emt 0:00:53]} Nxe4 {[%emt 0:00:47]} 20. Bxb4 {[%emt 0:02:49]} axb4 {[%emt 0:00:26]} 21. Bxe4 {[%emt 0:03:46]} Qd7 {[%emt 0:02:48]} 22. Qb1 {[%emt 0:01:41]} h6 {[%emt 0:04:30]} 23. f5 {[%emt 0:01:07]} Qd4+ {[%emt 0:02:03]} 24. Kh1 {[%emt 0:00:13]} Bb5 {[%emt 0:00:16]} 25. Rd1 {[%emt 0:07:05]} Qf6 {[%emt 0:00:32]} 26. Rf2 {[%emt 0:00:50]} Bc6 {[%emt 0:00:55]} 27. Rfd2 {[%emt 0:00:52]} Rfd8 {[%emt 0:02:18]} 28. h3 {[%emt 0:01:10]} Rxd2 {[%emt 0:00:53]} 29. Rxd2 {[%emt 0:00:02]} Re8 {[%emt 0:01:19]} 30. Bxc6 {[%emt 0:03:05]} bxc6 {[%emt 0:01:12]} 31. Qf1 {[%emt 0:01:06]} c5 {[%emt 0:01:03]} 32. Qf2 {[%emt 0:01:21]} Re5 {[%emt 0:01:40]} 33. g4 {[%emt 0:01:18]} c4 {[%emt 0:01:03]} 34. Rc2 {[%emt 0:00:51]} Qc6+ {[%emt 0:00:45]} 35. Kh2 {[%emt 0:00:10]} Qe4 {[%emt 0:00:41]} 36. Rd2 {[%emt 0:01:05]} c3 {[%emt 0:00:41]} 37. bxc3 {[%emt 0:00:07]} bxc3 {[%emt 0:00:02]} 38. Rc2 {[%emt 0:00:54]} Qd3 {[%emt 0:00:42]} 39. Ra2 {[%emt 0:00:32]} Re3 {[%emt 0:00:45]} 40. Qg2 {[%emt 0:00:00]} Qd6+ {[%emt 0:00:00]} 0-1

[Event "FIDE WYCC Top Boards Girls 2023"]
[Site "Montesilvano"]
[Date "2023.11.21"]
[Round "8.11"]
[White "Mou, Iris"]
[Black "Kirtadze, Anastasia"]
[Result "1/2-1/2"]
[ECO "B40"]
[WhiteElo "2086"]
[BlackElo "1921"]
[Annotator "NA RC"]
[PlyCount "101"]
[EventDate "2023.11.13"]
[EventType "swiss"]
[EventCountry "ITA"]
[SourceTitle "playchess.com"]
[Source "ChessBase"]
[SourceQuality "1"]
[TimeControl "40/5400+30:1800+30"]

1. e4 {[%emt 0:00:16]} c5 {[%emt 0:00:05]} 2. Nf3 {[%emt 0:00:06]} e6 {[%emt 0:00:57]} 3. g3 {[%emt 0:00:09]} Nc6 {[%emt 0:02:54]} 4. Bg2 {[%emt 0:00:12]} Nf6 {[%emt 0:02:05]} 5. Qe2 {[%emt 0:00:12]} e5 {[%emt 0:01:05]} 6. O-O {[%emt 0:00:54]} Be7 {[%emt 0:02:52]} 7. Nc3 {[%emt 0:00:12]} d6 {[%emt 0:00:52]} 8. Nd5 {[%emt 0:00:09]} O-O {[%emt 0:08:31]} 9. c3 {[%emt 0:00:09]} Be6 {[%emt 0:01:40]} 10. Ne1 {[%emt 0:00:34]} Qd7 {[%emt 0:19:03]} 11. d3 {[%emt 0:06:42]} Ne8 {[%emt 0:05:51]} 12. Nc2 {[%emt 0:09:42]} f5 {[%emt 0:04:52]} 13. Be3 {[%emt 0:06:23]} Nf6 {[%emt 0:01:59]} 14. Rad1 {[%emt 0:06:44]} Rae8 {[%emt 0:01:43]} 15. a3 {[%emt 0:05:58]} Ng4 {[%emt 0:06:31]} 16. Bc1 {[%emt 0:03:56]} Bd8 {[%emt 0:01:58]} 17. b4 {[%emt 0:04:01]} b6 {[%emt 0:01:40]} 18. b5 {[%emt 0:08:52]} Ne7 {[%emt 0:02:09]} 19. Nxe7+ {[%emt 0:01:53]} Rxe7 {[%emt 0:01:48]} 20. exf5 {[%emt 0:05:17]} Bxf5 {[%emt 0:00:44]} 21. Bd5+ {[%emt 0:06:19]} Kh8 {[%emt 0:01:30]} 22. Bg5 {[%emt 0:00:34]} Nf6 {[%emt 0:00:30]} 23. Bc6 {[%emt 0:02:51]} Qc8 {[%emt 0:05:09]} 24. Ne3 {[%emt 0:06:49]} Bh3 {[%emt 0:03:21]} 25. Bg2 {[%emt 0:01:25]} Bd7 {[%emt 0:02:59]} 26. d4 {[%emt 0:05:35]} exd4 {[%emt 0:05:07]} 27. cxd4 {[%emt 0:01:45]} h6 {[%emt 0:04:46]} 28. Bf4 {[%emt 0:02:57]} Bc7 {[%emt 0:00:27]} 29. Qb2 {[%emt 0:02:25]} Bh3 {[%emt 0:03:25]} 30. dxc5 {[%emt 0:07:17]} dxc5 {[%emt 0:00:21]} 31. Bxc7 {[%emt 0:00:21]} Rxc7 {[%emt 0:00:06]} 32. Nc4 {[%emt 0:00:46]} Bxg2 {[%emt 0:02:54]} 33. Kxg2 {[%emt 0:00:02]} Qe6 {[%emt 0:02:29]} 34. Qc2 {[%emt 0:02:04]} Re7 {[%emt 0:02:03]} 35. Rfe1 {[%emt 0:01:22]} Qxe1 {[%emt 0:00:33]} 36. Rxe1 {[%emt 0:00:04]} Rxe1 {[%emt 0:00:03]} 37. f4 {[%emt 0:02:19]} Rd8 {[%emt 0:03:22]} 38. Ne5 {[%emt 0:00:57]} Rdd1 {[%emt 0:00:27]} 39. Nf7+ {[%emt 0:00:29]} Kg8 {[%emt 0:00:04]} 40. Nxh6+ {[%emt 0:00:00]} Kf8 {[%emt 0:00:00]} 41. Qg6 {[%emt 0:06:29]} Rd2+ {[%emt 0:07:26]} 42. Kh3 {[%emt 0:01:16]} Rd7 {[%emt 0:00:39]} 43. Ng4 {[%emt 0:03:28]} Nxg4 {[%emt 0:04:20]} 44. Kxg4 {[%emt 0:03:03]} Ree7 {[%emt 0:02:06]} 45. Qh7 {[%emt 0:05:00]} c4 {[%emt 0:02:21]} 46. h4 {[%emt 0:01:27]} c3 {[%emt 0:01:08]} 47. h5 {[%emt 0:02:07]} Rc7 {[%emt 0:01:27]} 48. h6 {[%emt 0:05:26]} gxh6 {[%emt 0:01:02]} 49. Qh8+ {[%emt 0:00:09]} Kf7 {[%emt 0:00:09]} 50. Qh7+ {[%emt 0:00:17]} Kf8 {[%emt 0:04:46]} 51. Qh8+ {[%emt 0:00:10]} 1/2-1/2

[Event "FIDE WYCC Top Boards Girls 2023"]
[Site "Montesilvano"]
[Date "2023.11.21"]
[Round "8.12"]
[White "Khamdamova, Afruza"]
[Black "Kaliakhmet, Elnaz"]
[Result "1-0"]
[ECO "B32"]
[WhiteElo "2199"]
[BlackElo "1933"]
[Annotator "RC"]
[PlyCount "77"]
[EventDate "2023.11.13"]
[EventType "swiss"]
[EventCountry "ITA"]
[SourceTitle "playchess.com"]
[Source "ChessBase"]
[SourceQuality "1"]
[TimeControl "40/5400+30:1800+30"]

1. e4 {[%emt 0:00:05]} c5 {[%emt 0:00:40]} 2. Nf3 {[%emt 0:00:09]} Nc6 {[%emt 0:00:08]} 3. d4 {[%emt 0:00:10]} cxd4 {[%emt 0:00:10]} 4. Nxd4 {[%emt 0:00:05]} e5 {[%emt 0:00:25]} 5. Nb5 {[%emt 0:00:33]} d6 {[%emt 0:01:02]} 6. c4 {[%emt 0:04:32]} g6 {[%emt 0:00:50]} 7. N1c3 {[%emt 0:07:57]} a6 {[%emt 0:00:41]} 8. Na3 {[%emt 0:00:24]} Nf6 {[%emt 0:00:16]} 9. Be2 {[%emt 0:01:34]} Bg7 {[%emt 0:00:23]} 10. O-O {[%emt 0:02:12]} Be6 {[%emt 0:00:08]} 11. Nc2 {[%emt 0:00:43]} Rc8 {[%emt 0:00:28]} 12. Be3 {[%emt 0:18:35]} O-O {[%emt 0:01:04]} 13. Qd2 {[%emt 0:01:22]} Ne7 {[%emt 0:10:55]} 14. Na3 {[%emt 0:09:51]} Nc6 {[%emt 0:02:48]} 15. Rad1 {[%emt 0:07:15]} Nd4 {[%emt 0:03:24]} 16. f3 {[%emt 0:06:06]} Nh5 {[%emt 0:04:49]} 17. Nd5 {[%emt 0:01:34]} Bxd5 {[%emt 0:16:52]} 18. cxd5 {[%emt 0:01:08]} Nf4 {[%emt 0:05:51]} 19. Bxd4 {[%emt 0:04:03]} Nxe2+ {[%emt 0:00:33]} 20. Qxe2 {[%emt 0:00:04]} exd4 {[%emt 0:00:03]} 21. Qd3 {[%emt 0:06:38]} b5 {[%emt 0:04:33]} 22. Nc2 {[%emt 0:01:40]} Rc4 {[%emt 0:02:49]} 23. b3 {[%emt 0:05:21]} Rc3 {[%emt 0:02:35]} 24. Qd2 {[%emt 0:00:04]} Qb6 {[%emt 0:29:10]} 25. Kh1 {[%emt 0:00:32]} Rfc8 {[%emt 0:00:41]} 26. Nb4 {[%emt 0:07:42]} Qc5 {[%emt 0:06:09]} 27. Nc6 {[%emt 0:00:16]} Re8 {[%emt 0:00:28]} 28. Qf4 {[%emt 0:05:12]} Be5 {[%emt 0:03:33]} 29. Qg4 {[%emt 0:00:18]} Rc2 {[%emt 0:00:47]} 30. Qd7 {[%emt 0:01:12]} Rf8 {[%emt 0:00:04]} 31. f4 {[%emt 0:00:20]} Bg7 {[%emt 0:00:08]} 32. f5 {[%emt 0:00:40]} d3 {[%emt 0:01:06]} 33. fxg6 {[%emt 0:01:52]} fxg6 {[%emt 0:02:34]} 34. Qe6+ {[%emt 0:00:14]} Kh8 {[%emt 0:00:02]} 35. Rxf8+ {[%emt 0:00:04]} Bxf8 {[%emt 0:00:04]} 36. Qf6+ {[%emt 0:00:02]} Kg8 {[%emt 0:01:00]} 37. Rf1 {[%emt 0:00:06]} Bg7 {[%emt 0:01:16]} 38. Qf7+ {[%emt 0:00:08]} Kh8 {[%emt 0:00:02]} 39. Qe8+ {[%emt 0:00:05]} 1-0

[Event "FIDE WYCC Top Boards Girls 2023"]
[Site "Montesilvano"]
[Date "2023.11.22"]
[Round "9.7"]
[White "Luong, Hoang Tu Linh"]
[Black "Wu, Rochelle"]
[Result "0-1"]
[ECO "E05"]
[WhiteElo "1887"]
[BlackElo "2228"]
[Annotator "RC"]
[PlyCount "110"]
[EventDate "2023.11.13"]
[EventType "swiss"]
[EventCountry "ITA"]
[SourceTitle "playchess.com"]
[Source "ChessBase"]
[SourceQuality "1"]
[TimeControl "40/5400+30:1800+30"]

1. d4 {[%emt 0:00:07]} d5 {[%emt 0:00:03]} 2. Nf3 {[%emt 0:00:27]} Nf6 {[%emt 0:00:09]} 3. c4 {[%emt 0:00:09]} e6 {[%emt 0:00:12]} 4. g3 {[%emt 0:00:34]} Be7 {[%emt 0:00:32]} 5. Bg2 {[%emt 0:00:22]} O-O {[%emt 0:00:10]} 6. O-O {[%emt 0:00:09]} dxc4 {[%emt 0:00:05]} 7. Qc2 {[%emt 0:00:25]} b6 {[%emt 0:00:07]} 8. Qxc4 {[%emt 0:02:53]} Bb7 {[%emt 0:04:22]} 9. Nc3 {[%emt 0:03:52]} c5 {[%emt 0:02:32]} 10. Rd1 {[%emt 0:03:10]} Qc8 {[%emt 0:01:38]} 11. Bf4 {[%emt 0:10:15]} a6 {[%emt 0:08:09]} 12. Qb3 {[%emt 0:21:54]} b5 {[%emt 0:11:34]} 13. dxc5 {[%emt 0:08:41]} Nbd7 {[%emt 0:03:02]} 14. Bd6 {[%emt 0:08:25]} Nxc5 {[%emt 0:00:25]} 15. Bxc5 {[%emt 0:00:14]} Qxc5 {[%emt 0:05:31]} 16. h3 {[%emt 0:07:12]} Rac8 {[%emt 0:08:36]} 17. e3 {[%emt 0:05:03]} g6 {[%emt 0:06:15]} 18. Rac1 {[%emt 0:02:59]} Qa7 {[%emt 0:10:02]} 19. Nd4 {[%emt 0:10:54]} Bxg2 {[%emt 0:00:07]} 20. Kxg2 {[%emt 0:00:02]} Qb7+ {[%emt 0:00:26]} 21. Kg1 {[%emt 0:01:29]} e5 {[%emt 0:01:03]} 22. Nc2 {[%emt 0:01:13]} Rc4 {[%emt 0:03:17]} 23. Ne1 {[%emt 0:01:26]} Rfc8 {[%emt 0:02:44]} 24. Ne2 {[%emt 0:01:54]} h5 {[%emt 0:01:32]} 25. Rxc4 {[%emt 0:02:35]} Rxc4 {[%emt 0:00:02]} 26. Rc1 {[%emt 0:00:52]} Rxc1 {[%emt 0:06:08]} 27. Nxc1 {[%emt 0:00:02]} h4 {[%emt 0:03:51]} 28. g4 {[%emt 0:05:27]} Nh7 {[%emt 0:00:06]} 29. f3 {[%emt 0:01:34]} Ng5 {[%emt 0:06:39]} 30. Kg2 {[%emt 0:00:02]} Qb6 {[%emt 0:01:34]} 31. Ne2 {[%emt 0:01:02]} Bc5 {[%emt 0:02:04]} 32. Nc3 {[%emt 0:00:17]} Ne6 {[%emt 0:03:58]} 33. Nd5 {[%emt 0:00:24]} Qd8 {[%emt 0:03:20]} 34. Nd3 {[%emt 0:00:51]} Bxe3 {[%emt 0:01:18]} 35. Nxe3 {[%emt 0:00:31]} Qxd3 {[%emt 0:00:06]} 36. Qxd3 {[%emt 0:00:23]} Nf4+ {[%emt 0:00:01]} 37. Kf1 {[%emt 0:00:39]} Nxd3 {[%emt 0:00:03]} 38. b3 {[%emt 0:00:16]} Nf4 {[%emt 0:01:38]} 39. Nc2 {[%emt 0:00:31]} Nxh3 {[%emt 0:00:50]} 40. Nb4 {[%emt 0:00:00]} Ng5 {[%emt 0:00:00]} 41. Kg2 {[%emt 0:01:56]} f5 {[%emt 0:09:11]} 42. gxf5 {[%emt 0:03:40]} gxf5 {[%emt 0:00:04]} 43. Nxa6 {[%emt 0:00:15]} h3+ {[%emt 0:02:04]} 44. Kh2 {[%emt 0:01:14]} Nxf3+ {[%emt 0:00:50]} 45. Kxh3 {[%emt 0:00:09]} Nd4 {[%emt 0:01:28]} 46. Nc5 {[%emt 0:00:52]} Kf7 {[%emt 0:01:54]} 47. a4 {[%emt 0:01:15]} Nxb3 {[%emt 0:01:03]} 48. Nxb3 {[%emt 0:01:16]} bxa4 {[%emt 0:00:04]} 49. Nc1 {[%emt 0:00:15]} a3 {[%emt 0:00:51]} 50. Kg3 {[%emt 0:00:07]} Ke6 {[%emt 0:00:18]} 51. Kf3 {[%emt 0:00:11]} Kd5 {[%emt 0:00:19]} 52. Ke3 {[%emt 0:00:15]} Kc4 {[%emt 0:00:52]} 53. Kd2 {[%emt 0:00:13]} f4 {[%emt 0:00:17]} 54. Kc2 {[%emt 0:00:18]} e4 {[%emt 0:00:18]} 55. Kd2 {[%emt 0:00:29]} e3+ {[%emt 0:00:30]} 0-1